bitfinex/quotes_ETHUSD_20210701
["timestamp","ask_amount","ask_price","bid_price","bid_amount"]
[1625102069330,0.1779354,2252.2,2251.2,0.12]
[1625102069426,14.07091809,2252.3,2251.2,0.12]
[1625102069529,14.07091809,2252.3,2251.2,5.13]
[1625102069635,0.17725809,2252.3,2251.2,5.13]
[1625102069729,0.00961378,2252.3,2251.2,5.13]
[1625102069831,0.00961378,2252.3,2251.3,10.10686254]
[1625102069933,0.00961378,2252.3,2251.3,10.14686254]
[1625102070032,7.6607,2252.9,2251.7,6.66141]
[1625102070130,7.66760473,2252.9,2251.8,5.20613822]
[1625102070234,7.66760473,2252.9,2251.8,0.14]
[1625102070432,7.6607,2252.9,2251.8,0.14]
[1625102071132,7.6607,2252.9,2252.0,6.66053]
[1625102071330,7.6607,2252.9,2252.1,0.14]
[1625102071567,22.6607,2252.9,2252.1,0.14]
[1625102071663,21.6607,2252.9,2252.1,0.14]
[1625102071863,21.6607,2252.9,2252.0,6.66053]
[1625102071964,21.6607,2252.9,2251.9,8.88012]
[1625102072666,22.6607,2252.9,2251.9,8.88012]
[1625102072971,6.66131,2252.6,2251.8,0.14]
[1625102073570,11.41831,2252.6,2251.8,0.14]
[1625102073679,19.757,2252.6,2251.7,5.01]
[1625102073877,19.757,2252.6,2251.6,10.1122]
[1625102073961,0.08,2252.5,2251.5,0.14]
[1625102074062,5.01,2252.4,2251.5,0.14]
[1625102074162,20.01,2252.4,2251.5,0.14]
[1625102074863,5.01,2252.4,2251.5,0.14]
[1625102075367,5.01,2252.4,2251.5,6.80209]
[1625102075568,6.66157,2252.5,2251.5,6.80209]
[1625102075767,6.66157,2252.5,2251.6,0.08]
[1625102075868,1.0,2252.7,2251.6,5.09]
[1625102075965,1.0,2252.7,2251.7,0.14]
[1625102076825,7.66099,2252.7,2251.9,6.66099]
[1625102077026,7.66099,2252.7,2251.9,6.80099]
[1625102077825,1.0,2252.7,2251.9,6.80099]
[1625102077927,1.0,2252.7,2251.9,0.14]
[1625102078125,5.01,2252.6,2251.9,0.14]
[1625102078331,1.0,2252.7,2251.9,0.14]
[1625102079135,23.88175,2252.8,2251.9,0.14]
[1625102079435,6.66108,2252.6,2251.9,6.80099]
[1625102080875,1.0,2252.7,2251.9,6.80099]
[1625102081171,5.01,2252.8,2251.9,6.80099]
[1625102081271,1.0,2252.9,2251.9,6.80099]
[1625102081873,6.66088,2252.6,2251.9,6.80099]
[1625102081973,6.66088,2252.6,2251.9,0.14]
[1625102082077,9.91418,2252.6,2251.9,0.14]
[1625102084282,10.91418,2252.6,2251.9,0.14]
[1625102084782,10.91418,2252.6,2251.9,6.80098]
[1625102085626,10.91418,2252.6,2251.9,0.14]
[1625102087471,10.91418,2252.6,2251.9,6.80101]
[1625102088373,3.2533,2252.6,2251.9,6.80101]
[1625102088477,8.88064,2252.9,2252.1,5.01]
[1625102088574,21.128,2253.0,2252.2,5.55538439]
[1625102088676,21.128,2253.0,2252.2,10.53062673]
[1625102088772,21.128,2253.0,2252.3,0.2]
[1625102088973,21.128,2253.0,2252.4,0.14]
[1625102089072,21.128,2253.0,2252.4,3.5518]
[1625102089172,21.078,2253.0,2252.4,3.5518]
[1625102089585,21.078,2253.0,2252.6,6.65855]
[1625102089776,21.078,2253.0,2252.7,0.14]
[1625102090577,20.978,2253.0,2252.7,0.14]
[1625102091532,1.0,2252.9,2252.7,0.14]
[1625102092347,1.0,2252.9,2252.4,8.87786]
[1625102092444,11.0,2252.5,2252.4,8.87786]
[1625102092549,11.0,2252.5,2252.4,9.01786]
[1625102093252,14.2259,2252.5,2252.4,0.14]
[1625102093551,14.2259,2252.5,2251.9,10.2004]
[1625102094605,14.2259,2252.5,2251.9,16.86107]
[1625102094807,14.2259,2252.5,2252.0,0.16]
[1625102094906,14.2259,2252.5,2252.0,0.3]
[1625102095504,14.2259,2252.5,2252.0,0.14]
[1625102095607,14.2259,2252.5,2252.1,5.01]
[1625102095906,14.2259,2252.5,2252.1,5.15]
[1625102096453,14.2259,2252.5,2252.2,6.65961]
[1625102096652,14.2259,2252.5,2252.4,5.01]
[1625102096852,14.2259,2252.5,2252.4,0.14]
[1625102096949,14.2259,2252.5,2252.4,0.18]
[1625102097552,14.2259,2252.5,2252.4,0.14]
[1625102100057,14.2259,2252.5,2252.1,6.80005]
[1625102100157,14.2259,2252.5,2252.1,0.14]
[1625102102205,14.2259,2252.5,2251.8,8.88065]
[1625102102308,14.2259,2252.5,2251.5,8.87996]
[1625102102309,35.89378268,2252.5,2251.5,8.87996]
[1625102102411,5.0168779,2252.3,2251.4,10.3897]
[1625102102510,15.21005486,2252.2,2251.2,0.14]
[1625102102607,15.21757659,2252.2,2251.2,0.14]
[1625102103350,0.21757659,2252.2,2251.2,0.14]
[1625102103457,10.30957,2251.9,2251.2,0.14]
[1625102103555,3.6466,2251.9,2251.2,5.33832096]
[1625102103655,3.6466,2251.9,2251.3,0.2]
[1625102103855,3.6466,2251.9,2251.4,0.14]
[1625102104558,3.6466,2251.9,2251.4,5.15]
[1625102104756,3.6466,2251.9,2251.5,0.14]
[1625102104960,3.6466,2251.9,2251.5,0.28]
[1625102105158,3.6466,2251.9,2251.5,0.14]
[1625102107416,3.6466,2251.9,2251.5,6.80158]
[1625102107665,3.6526,2251.9,2251.5,6.80158]
[1625102109466,3.6526,2251.9,2251.5,0.14]
[1625102112790,3.6526,2251.9,2251.1,15.12877278]
[1625102112890,3.6526,2251.9,2251.1,10.1388]
[1625102112988,3.6526,2251.9,2251.2,0.14]
[1625102113893,25.31551,2251.9,2251.2,0.14]
[1625102113996,25.37551,2251.9,2250.7,4.44111]
[1625102114094,0.22075326,2251.8,2250.6,18.93283]
[1625102114195,0.22075326,2251.8,2250.6,8.88293]
[1625102114292,5.01,2251.7,2250.7,0.14]
[1625102114408,15.17867357,2251.6,2250.7,0.14]
[1625102114505,15.0,2251.6,2250.7,0.14]
[1625102114607,5.01690192,2251.7,2250.7,0.14]
[1625102114701,20.01690192,2251.7,2250.7,0.14]
[1625102114803,0.16777965,2251.6,2250.7,0.14]
[1625102115201,6.66442,2251.4,2250.7,0.14]
[1625102115303,28.90280192,2251.7,2250.7,0.14]
[1625102115402,0.19976355,2251.6,2250.7,0.14]
[1625102115501,0.31976355,2251.6,2250.7,0.14]
[1625102115603,0.31976355,2251.6,2250.4,10.5505]
[1625102116258,0.19976355,2251.6,2250.3,5.17070272]
[1625102116357,0.19976355,2251.6,2250.3,0.14]
[1625102116457,25.63283,2251.0,2250.3,0.14]
[1625102117304,10.63283,2251.0,2250.3,0.14]
[1625102117403,3.967,2251.0,2250.3,0.14]
[1625102118758,3.967,2251.0,2250.3,6.80521]
[1625102119607,18.967,2251.0,2250.3,6.80521]
[1625102119709,18.967,2251.0,2250.3,0.14]
[1625102119807,25.63296,2251.0,2250.3,0.14]
[1625102120710,5.01,2250.8,2250.1,0.2]
[1625102120814,21.66708,2250.7,2250.1,0.2]
[1625102120910,15.0,2250.7,2250.1,0.2]
[1625102121011,5.01,2250.5,2250.1,0.2]
[1625102121195,24.4122,2250.5,2250.1,0.2]
[1625102121281,32.4122,2250.5,2250.1,0.2]
[1625102121380,0.1,2250.4,2250.1,0.2]
[1625102121481,0.1,2250.4,2250.1,0.0001]
[1625102122080,15.0,2250.3,2250.1,0.0001]
[1625102122179,5.01,2250.2,2250.1,0.0001]
[1625102122380,20.01,2250.2,2250.1,0.0001]
[1625102123599,28.01,2250.2,2250.1,0.0001]
[1625102123898,28.13,2250.2,2250.1,0.0001]
[1625102127125,13.13,2250.2,2250.1,0.0001]
[1625102127231,10.1241,2250.5,2250.1,0.0001]
[1625102127373,10.1241,2250.5,2250.1,4.3253]
[1625102127475,5.01,2250.6,2250.1,4.3253]
[1625102127676,5.01,2250.7,2250.1,4.3253]
[1625102128121,5.01,2250.6,2250.1,4.3253]
[1625102128224,5.05,2250.6,2250.1,4.3253]
[1625102128326,5.01,2250.4,2250.1,4.3253]
[1625102128421,5.01,2250.3,2250.1,4.3253]
[1625102128525,20.01,2250.3,2250.1,4.3253]
[1625102128824,20.01,2250.3,2249.4,0.14]
[1625102129123,0.12,2250.2,2249.4,0.14]
[1625102129220,20.01,2250.3,2249.4,0.14]
[1625102129621,6.66883,2250.1,2249.4,0.14]
[1625102129725,15.0,2250.0,2249.4,0.14]
[1625102130534,15.0,2250.0,2249.1,0.34]
[1625102130732,6.67003,2249.7,2249.1,0.34]
[1625102130831,15.0,2249.6,2249.1,0.34]
[1625102131688,16.0,2249.6,2249.1,0.34]
[1625102137026,19.4558,2249.6,2249.1,0.34]
[1625102137826,20.4558,2249.6,2249.1,0.34]
[1625102138332,5.4558,2249.6,2249.1,0.34]
[1625102138432,1.0,2249.6,2249.1,0.34]
[1625102138532,1.0,2249.6,2249.2,0.12]
[1625102138628,1.0,2249.6,2249.1,5.21]
[1625102138730,1.0,2249.6,2249.3,0.14]
[1625102138828,5.11818418,2250.4,2249.3,0.14]
[1625102138931,1.0,2250.6,2249.3,0.14]
[1625102139033,5.97587297,2250.6,2249.4,0.18]
[1625102139130,5.97587297,2250.6,2249.1,5.21]
[1625102139252,1.0,2250.6,2249.5,0.14]
[1625102139453,5.92676543,2250.6,2249.5,0.14]
[1625102139553,6.66826,2250.3,2249.5,0.14]
[1625102139653,15.0,2250.5,2249.5,0.14]
[1625102139753,16.12,2250.5,2249.5,0.14]
[1625102140154,16.0,2250.5,2249.5,0.14]
[1625102140355,5.01,2250.3,2249.5,0.14]
[1625102140454,15.0,2250.2,2249.5,0.14]
[1625102140657,21.66855,2250.2,2249.5,0.14]
[1625102140855,1.0,2250.1,2249.5,0.14]
[1625102141923,7.66855,2250.2,2249.5,0.14]
[1625102142323,22.66855,2250.2,2249.5,0.14]
[1625102142924,1.0,2250.1,2249.5,0.14]
[1625102144255,16.0,2250.1,2249.5,0.14]
[1625102144356,21.66873,2250.1,2249.2,6.66822]
[1625102144460,21.66873,2250.1,2249.3,0.14]
[1625102144657,5.01,2249.9,2249.1,0.2]
[1625102144754,15.0,2249.8,2249.1,0.2]
[1625102145356,4.7834,2249.9,2249.1,0.2]
[1625102145660,4.7834,2249.9,2249.2,0.06]
[1625102146005,15.0,2249.8,2249.2,0.06]
[1625102146108,15.0,2249.8,2249.1,0.2]
[1625102146405,21.66943,2249.8,2249.1,0.2]
[1625102147615,16.0,2249.7,2249.1,0.2]
[1625102148666,15.0,2249.7,2249.1,0.2]
[1625102149268,14.99316307,2249.7,2249.1,0.2]
[1625102149368,21.66290307,2249.7,2249.1,0.2]
[1625102149667,15.99316307,2249.6,2249.1,0.2]
[1625102150268,5.01,2249.4,2249.1,0.2]
[1625102150374,8.9133,2249.4,2249.1,0.2]
[1625102150711,3.9033,2249.4,2249.1,0.2]
[1625102150814,8.77700898,2249.4,2249.1,0.2]
[1625102151113,18.89646307,2249.4,2249.1,0.2]
[1625102151311,5.01,2249.2,2249.1,0.2]
[1625102151515,11.6809,2249.2,2249.1,0.2]
[1625102151815,12.6809,2249.2,2249.1,0.2]
[1625102152839,7.6709,2249.2,2249.1,0.2]
[1625102153342,1.0,2249.2,2249.1,0.2]
[1625102153445,18.41316307,2249.3,2249.1,0.2]
[1625102154148,5.01,2249.2,2249.1,0.2]
[1625102154649,17.41316307,2249.3,2249.1,0.2]
[1625102155464,24.08390307,2249.3,2249.1,0.2]
[1625102155968,9.09074,2249.3,2249.1,0.2]
[1625102156069,1.285,2249.3,2249.1,0.2]
[1625102156168,1.0,2249.5,2249.1,0.2]
[1625102156467,1.0,2249.5,2249.1,6.86931]
[1625102157167,15.0,2249.7,2249.1,6.86931]
[1625102158121,5.01,2249.5,2249.1,0.2]
[1625102158221,15.0,2249.4,2249.1,0.2]
[1625102159220,16.0,2249.4,2249.1,0.2]
[1625102160209,22.67051,2249.4,2249.1,0.2]
[1625102160316,21.67051,2249.4,2249.1,0.2]
[1625102160959,15.0,2249.4,2249.1,0.2]
[1625102161360,16.0,2249.4,2249.1,0.2]
[1625102161462,1.0,2249.4,2249.1,0.2]
[1625102164318,16.587,2249.5,2249.1,0.2]
[1625102165468,31.587,2249.5,2249.1,0.2]
[1625102165672,15.0,2249.4,2249.1,0.2]
[1625102165771,5.01,2249.2,2249.1,0.2]
[1625102165868,16.587,2249.5,2249.1,0.2]
[1625102165969,15.5927,2249.5,2249.1,0.2]
[1625102166070,8.9225,2249.5,2249.1,0.2]
[1625102166169,5.01,2249.4,2249.1,0.2]
[1625102166728,1.0,2249.5,2249.1,0.2]
[1625102167107,1.0,2249.5,2249.1,6.8694]
[1625102167208,1.0,2249.5,2249.2,0.04]
[1625102167408,5.01,2249.6,2249.2,0.04]
[1625102167507,5.01,2249.8,2249.2,0.04]
[1625102167708,5.01,2249.8,2249.1,0.2]
[1625102168011,15.0,2249.7,2249.1,0.2]
[1625102168208,21.66985,2249.7,2249.1,0.2]
[1625102168580,1.0,2249.6,2249.1,0.2]
[1625102169483,1.0,2249.6,2249.1,6.86954]
[1625102169587,5.01,2249.8,2249.1,6.86954]
[1625102169685,1.0,2249.9,2249.2,0.1]
[1625102169786,1.0,2249.9,2249.2,5.37752167]
[1625102169883,1.0,2249.9,2249.2,0.24]
[1625102170185,1.0,2249.9,2249.2,0.14]
[1625102170487,1.0,2249.9,2249.2,3.47422]
[1625102170587,15.0,2249.9,2249.2,10.14321]
[1625102170689,15.0,2249.9,2249.2,0.14]
[1625102170853,19.2015,2249.9,2249.1,0.2]
[1625102171035,0.12,2249.8,2249.1,0.2]
[1625102171637,5.01,2249.7,2249.1,0.2]
[1625102171737,6.67046,2249.5,2249.1,0.2]
[1625102171840,5.01,2249.3,2249.1,0.2]
[1625102171938,9.0128,2249.3,2249.1,0.2]
[1625102172040,5.01,2249.2,2249.1,0.2]
[1625102172437,24.0128,2249.3,2249.1,0.2]
[1625102172636,1.0,2249.2,2249.1,0.2]
[1625102174040,6.01,2249.2,2249.1,0.2]
[1625102174891,1.0014,2249.6,2249.1,0.2]
[1625102174892,2.0014,2249.6,2249.1,0.2]
[1625102174991,5.01,2249.5,2249.1,0.34]
[1625102177238,1.0,2249.6,2249.1,0.34]
[1625102177342,6.01,2249.6,2249.1,0.34]
[1625102177439,6.01,2249.6,2249.1,7.00948]
[1625102178292,1.0,2249.8,2249.1,7.00948]
[1625102178492,1.0,2249.8,2249.2,0.06]
[1625102178694,6.01,2249.8,2249.4,6.66863]
[1625102178795,1.0,2249.8,2249.4,6.66863]
[1625102178895,1.0,2249.8,2249.4,6.80863]
[1625102179297,9.8462,2250.3,2249.4,6.80863]
[1625102179446,24.8462,2250.3,2249.5,0.08]
[1625102179545,24.8462,2250.3,2249.4,6.66863]
[1625102179644,24.8462,2250.3,2249.6,0.14]
[1625102180187,3.3343112,2250.5,2249.6,0.14]
[1625102180291,6.66769,2250.5,2249.6,6.80797]
[1625102180392,1.0,2250.6,2249.7,5.76677833]
[1625102180589,1.0,2250.6,2249.8,0.04]
[1625102180690,1.0,2250.6,2249.8,0.18]
[1625102180792,1.0,2250.6,2249.9,3.33308]
[1625102180991,1.0,2250.6,2250.0,5.27665748]
[1625102181089,1.0,2250.6,2250.0,0.14]
[1625102181290,3.3334029,2251.2,2250.0,0.14]
[1625102181391,3.3334029,2251.2,2250.0,5.23547246]
[1625102181494,15.0,2251.1,2250.0,9.48687246]
[1625102181793,15.0,2251.1,2250.0,4.3914]
[1625102182187,5.01,2250.9,2250.0,9.46545023]
[1625102182285,5.01,2250.9,2250.0,9.46477885]
[1625102182387,5.01,2250.9,2250.2,6.66607]
[1625102182585,5.01,2250.9,2250.3,0.14]
[1625102184390,5.01,2250.9,2250.3,6.80575]
[1625102184494,5.01,2250.9,2250.3,11.64225]
[1625102184589,5.01,2251.0,2250.3,11.64225]
[1625102184695,5.01,2251.0,2250.3,4.9765]
[1625102184991,5.01,2250.9,2250.3,4.9765]
[1625102185391,13.01,2250.9,2250.3,4.9765]
[1625102185791,5.01,2250.9,2250.3,11.64225]
[1625102185894,15.0,2251.1,2250.3,11.64225]
[1625102185990,20.01,2251.1,2250.3,11.64225]
[1625102186195,5.01,2251.0,2250.3,11.64225]
[1625102186392,6.01,2251.0,2250.3,11.64225]
[1625102187139,1.0,2251.0,2250.3,11.64225]
[1625102187687,1.0,2251.0,2250.3,4.9765]
[1625102187886,1.0,2251.0,2250.3,0.14]
[1625102188087,15.0,2250.9,2250.3,0.14]
[1625102188588,21.66654,2250.9,2250.3,0.14]
[1625102188687,1.0,2250.8,2250.3,0.14]
[1625102189641,1.0,2250.8,2250.1,6.6662]
[1625102189737,1.0,2250.8,2250.1,6.8062]
[1625102190391,6.666,2251.1,2250.1,6.8062]
[1625102190492,6.666,2251.1,2250.2,0.18]
[1625102190591,11.59864886,2251.1,2250.2,0.18]
[1625102190790,11.59864886,2251.1,2250.1,3.4729]
[1625102191131,26.59864886,2251.1,2250.1,3.4729]
[1625102191436,1.0,2251.0,2250.3,6.6658]
[1625102191733,15.0,2250.9,2250.1,3.4729]
[1625102192335,19.84418207,2250.9,2250.1,3.4729]
[1625102192436,16.0,2250.9,2250.1,3.4729]
[1625102193411,22.66648,2250.9,2250.1,10.13925]
[1625102193502,1.0,2250.8,2250.1,10.13925]
[1625102195636,1.0,2250.8,2250.2,0.06]
[1625102195736,1.0,2250.8,2250.2,3.631]
[1625102195836,1.0,2250.8,2250.2,3.571]
[1625102197953,1.0,2250.8,2250.2,3.351]
[1625102198456,6.66648,2250.9,2250.2,3.351]
[1625102198655,6.66648,2250.9,2250.2,10.01693]
[1625102198757,19.96745661,2251.1,2250.2,10.01693]
[1625102199456,20.96745661,2251.1,2250.2,10.01693]
[1625102200424,27.63331661,2251.1,2250.2,10.01693]
[1625102200523,1.0,2251.0,2250.2,10.01693]
[1625102201528,9.88829,2251.2,2250.2,10.01693]
[1625102201628,24.88829,2251.2,2250.2,10.01693]
[1625102201728,24.88829,2251.2,2250.3,0.06]
[1625102201928,24.88829,2251.2,2250.2,6.66593]
[1625102202445,6.66604,2251.0,2250.2,6.66593]
[1625102204682,1.0,2251.1,2250.2,6.66593]
[1625102204875,16.0,2251.2,2250.2,6.66593]
[1625102205175,16.0,2251.2,2250.2,11.35864675]
[1625102205880,1.0,2251.2,2250.2,6.289292]
[1625102205980,15.0499,2251.3,2250.2,6.289292]
[1625102206078,5.01,2251.1,2250.2,11.39724471]
[1625102206183,5.01,2251.1,2250.3,0.06]
[1625102206281,6.66553,2251.2,2250.3,8.94663]
[1625102206381,10.0399,2251.3,2250.4,5.10787404]
[1625102206482,1.0,2251.4,2250.4,8.88982754]
[1625102206583,1.0,2251.4,2250.6,5.01]
[1625102206681,1.0,2251.4,2250.7,5.29460009]
[1625102206780,1.0,2251.4,2250.7,5.43460009]
[1625102206988,1.0,2251.4,2250.7,8.76645009]
[1625102207085,20.7766,2251.7,2250.7,8.76645009]
[1625102207284,10.4198,2251.7,2250.7,8.76645009]
[1625102207387,10.4198,2251.7,2250.7,8.66645009]
[1625102207487,10.4198,2251.7,2250.7,3.37185]
[1625102207887,17.08372,2251.7,2250.7,3.37185]
[1625102208186,10.4198,2251.7,2250.7,3.37185]
[1625102208487,10.4198,2251.7,2250.8,0.08]
[1625102208687,10.4198,2251.7,2250.9,0.14]
[1625102208986,0.006,2251.9,2250.9,0.14]
[1625102209091,6.66357,2251.8,2251.1,6.66324]
[1625102209237,6.66357,2251.8,2250.9,12.20556]
[1625102209238,0.006,2251.9,2251.2,0.14]
[1625102209444,0.006,2251.9,2251.2,5.15]
[1625102209538,0.006,2251.9,2251.3,5.04814425]
[1625102209641,0.006,2251.9,2251.3,5.05687691]
[1625102209739,0.006,2251.9,2251.4,0.14]
[1625102209837,0.006,2251.9,2251.4,4.3465]
[1625102211042,0.006,2251.9,2251.6,6.66171]
[1625102215321,0.006,2251.9,2251.5,0.14]
[1625102215519,0.006,2251.9,2251.6,0.08]
[1625102216692,0.006,2251.9,2251.6,6.74179]
[1625102216993,0.006,2251.9,2251.7,0.06]
[1625102217294,0.006,2251.9,2251.8,0.14]
[1625102218321,0.006,2251.9,2251.8,6.80121]
[1625102218521,0.006,2251.9,2251.8,0.14]
[1625102223328,0.006,2251.9,2251.8,4.9419]
[1625102223626,0.006,2251.9,2251.8,5.1219]
[1625102225586,0.006,2251.9,2251.8,11.78263]
[1625102227498,0.006,2251.9,2251.8,16.79263]
[1625102228899,4.73464502,2252.4,2251.8,16.79263]
[1625102229000,11.0,2252.5,2251.9,0.13]
[1625102229098,11.0,2252.5,2251.8,16.61263]
[1625102229199,11.0,2252.5,2252.0,0.14]
[1625102231471,11.0,2252.5,2252.0,6.80066]
[1625102231571,11.0,2252.5,2251.8,5.01]
[1625102231670,11.0,2252.5,2251.8,5.15]
[1625102232080,5.02988315,2252.4,2251.8,5.15]
[1625102233431,5.02988315,2252.4,2251.8,11.81117]
[1625102234079,5.02988315,2252.4,2251.8,0.14]
[1625102234179,15.0,2252.3,2251.5,0.14]
[1625102234279,5.04382659,2252.2,2251.5,0.14]
[1625102234377,5.04382659,2252.2,2251.2,10.662]
[1625102234480,5.04382659,2252.2,2251.2,10.802]
[1625102235078,11.70651659,2252.2,2251.2,17.46477]
[1625102235276,11.70651659,2252.2,2251.2,6.80277]
[1625102235578,15.0,2252.1,2251.2,6.80277]
[1625102235682,10.34256481,2252.0,2251.2,0.14]
[1625102235777,10.50650602,2252.0,2251.1,9.9156]
[1625102235878,5.50269054,2252.0,2251.1,9.9156]
[1625102235980,6.53610982,2252.0,2251.1,9.9156]
[1625102236077,6.70046803,2252.0,2251.1,9.9156]
[1625102236177,8.87185452,2252.0,2251.1,16.57877]
[1625102236302,2.20868452,2252.0,2251.1,16.57877]
[1625102236390,2.20868452,2252.0,2251.1,16.71877]
[1625102236489,2.2025,2252.0,2251.1,16.71877]
[1625102236588,1.0,2252.0,2251.1,16.71877]
[1625102237287,5.01,2252.2,2251.1,16.71877]
[1625102237688,6.6628,2252.0,2251.1,16.71877]
[1625102239120,6.6628,2252.0,2251.1,16.66877]
[1625102239622,15.0,2251.9,2251.1,16.66877]
[1625102239725,15.0,2251.9,2251.1,10.0056]
[1625102239926,15.16,2251.9,2251.1,10.0056]
[1625102240224,9.8845,2252.1,2251.1,10.0056]
[1625102240324,8.8845,2252.1,2251.1,10.0056]
[1625102240426,15.0,2252.0,2251.1,10.0056]
[1625102240787,6.66376,2251.7,2251.1,16.66896]
[1625102241174,6.66376,2251.7,2251.1,10.0056]
[1625102241727,1.0,2251.9,2251.1,10.0056]
[1625102242440,24.8845,2252.1,2251.1,10.0056]
[1625102242640,0.1,2252.0,2251.1,10.0056]
[1625102242941,6.66333,2251.8,2251.1,16.66872]
[1625102243127,6.66333,2251.8,2251.1,10.0056]
[1625102243514,7.66333,2251.8,2251.1,9.8656]
[1625102243618,0.04,2251.7,2251.1,9.8656]
[1625102244619,15.0,2251.9,2251.1,9.8656]
[1625102244817,6.66386,2251.7,2251.1,9.8656]
[1625102245534,1.0,2252.1,2251.1,9.8656]
[1625102245734,5.01,2252.0,2251.1,9.8656]
[1625102246682,6.01,2252.0,2251.1,9.8656]
[1625102247334,0.04,2251.9,2251.1,9.8656]
[1625102247435,6.66332,2251.8,2251.1,16.52891]
[1625102247894,6.01,2252.0,2251.1,16.52891]
[1625102247990,5.01,2252.0,2251.2,0.14]
[1625102248091,1.0,2252.1,2251.2,9.16423685]
[1625102248390,1.0,2252.1,2251.2,4.0364]
[1625102248493,1.0,2252.1,2251.6,6.66184]
[1625102248694,6.01,2252.1,2251.6,6.66184]
[1625102248791,6.01,2252.1,2251.7,0.14]
[1625102248891,6.01,2252.1,2251.7,4.9296]
[1625102248994,5.01,2252.1,2251.7,4.9296]
[1625102249194,46.28603,2252.5,2251.7,4.9296]
[1625102249394,38.28603,2252.5,2251.7,4.9296]
[1625102249492,0.1,2252.4,2251.7,4.9296]
[1625102249860,27.73433,2252.5,2251.7,4.9296]
[1625102250059,26.73433,2252.5,2251.7,4.9296]
[1625102250413,6.66177,2252.3,2251.7,4.9296]
[1625102250811,6.66177,2252.3,2251.7,4.9096]
[1625102251616,17.85,2252.5,2251.7,11.57099]
[1625102252086,0.04,2252.4,2251.7,11.57099]
[1625102252187,17.85,2252.5,2251.7,11.57099]
[1625102253438,6.66141,2252.4,2251.7,11.57099]
[1625102257041,11.0,2252.5,2251.7,11.57099]
[1625102257145,11.0,2252.5,2251.8,5.63106926]
[1625102257332,0.2,2252.9,2251.9,10.69]
[1625102257429,0.2,2252.9,2252.1,5.01]
[1625102257628,0.2,2252.9,2252.2,0.14]
[1625102257729,0.2,2252.9,2252.4,5.01]
[1625102257929,0.2,2252.9,2252.5,0.14]
[1625102259214,0.2,2252.9,2252.5,5.15]
[1625102259418,0.2,2252.9,2252.6,6.65832]
[1625102259718,0.2,2252.9,2252.7,0.14]
[1625102259815,0.2,2252.9,2252.7,4.223]
[1625102260816,0.2,2252.9,2252.7,10.88122]
[1625102261720,1.2,2252.9,2252.7,10.88122]
[1625102262421,8.0,2252.8,2252.7,10.88122]
[1625102262779,8.0,2252.8,2252.7,4.223]
[1625102262875,8.0,2252.8,2252.7,0.14]
[1625102262982,11.7878,2252.8,2251.9,3.32987]
[1625102263077,11.7878,2252.8,2252.0,9.8939]
[1625102263273,11.7278,2252.8,2252.0,9.8939]
[1625102263514,11.7278,2252.8,2252.0,0.14]
[1625102264418,11.7278,2252.8,2252.0,9.01964]
[1625102265015,12.7278,2252.8,2252.0,9.01964]
[1625102265977,11.7278,2252.8,2252.0,9.01964]
[1625102266429,18.3885,2252.8,2252.0,9.01964]
[1625102267080,19.3885,2252.8,2252.0,9.01964]
[1625102267682,12.7278,2252.8,2252.0,9.01964]
[1625102268014,12.7278,2252.8,2252.1,0.1]
[1625102268111,11.7278,2252.8,2252.1,0.1]
[1625102268211,11.7278,2252.8,2252.2,0.14]
[1625102269315,11.7278,2252.8,2252.4,6.65917]
[1625102270769,8.0,2252.8,2252.4,6.65917]
[1625102272412,8.0,2252.8,2252.5,0.22]
[1625102273170,8.0,2252.8,2252.5,3.5491]
[1625102273471,8.0,2252.8,2252.6,0.06]
[1625102273668,8.0,2252.8,2252.6,0.2]
[1625102273771,8.0,2252.8,2252.6,6.85793]
[1625102273870,8.0,2252.8,2252.6,6.79793]
[1625102278122,8.0,2252.8,2252.6,0.14]
[1625102278222,8.0,2252.8,2252.3,0.14]
[1625102279475,8.0,2252.8,2252.3,6.79979]
[1625102281279,8.0,2252.8,2252.5,3.32936]
[1625102281531,8.0,2252.8,2252.6,0.14]
[1625102283032,8.0,2252.8,2252.6,6.79843]
[1625102283333,8.0,2252.8,2252.7,5.01]
[1625102283435,8.0,2252.8,2252.7,5.05]
[1625102283873,8.0,2252.8,2252.7,5.01]
[1625102284073,8.0,2252.8,2252.7,11.66793]
[1625102284277,8.0,2252.8,2252.7,6.65793]
[1625102284976,8.0,2252.8,2252.6,0.14]
[1625102285175,8.0,2252.8,2252.5,3.32936]
[1625102286019,8.0,2252.8,2252.6,6.65907]